bitfinex-derivatives/quotes_ETHF0:USTF0_20250308
["timestamp","ask_amount","ask_price","bid_price","bid_amount"]
[1741414137886,1.59601,2142.6,2142.5,0.01]
[1741414138988,0.6624,2142.6,2142.5,0.94365]
[1741414139389,1.59601,2142.6,2142.5,0.94365]
[1741414139691,4.14115,2143.3,2142.6,2.33403]
[1741414139878,1.2313,2143.3,2142.9,3.2078]
[1741414140079,0.93342,2143.1,2142.9,3.2078]
[1741414140390,0.93343,2143.0,2142.9,3.2078]
[1741414140590,1.56473,2143.0,2142.9,3.2078]
[1741414141185,4.4391,2143.3,2142.9,3.2078]
[1741414141390,0.93337,2143.2,2142.9,4.78944]
[1741414141595,5.37243,2143.3,2143.0,0.93342]
[1741414142088,0.93337,2143.2,2143.0,0.93343]
[1741414142985,0.9334,2143.1,2142.9,4.78945]
[1741414143192,0.6578,2143.0,2142.9,3.2078]
[1741414143793,0.6578,2143.0,2142.9,4.14128]
[1741414144491,3.8227,2143.3,2142.9,3.2078]
[1741414144691,0.93335,2143.2,2142.9,4.14125]
[1741414144895,0.93337,2143.2,2142.9,3.2078]
[1741414145187,1.2821,2143.3,2143.1,0.93335]
[1741414145393,0.93335,2143.2,2143.0,1.5881]
[1741414145596,0.93338,2143.2,2142.9,4.14126]
[1741414145889,1.2821,2143.3,2142.9,4.19126]
[1741414145890,1.59701,2143.1,2142.9,4.19126]
[1741414146095,0.6073,2143.0,2142.9,4.19126]
[1741414146289,0.6672,2143.3,2142.9,3.2578]
[1741414146489,1.2745,2143.3,2143.1,0.93337]
[1741414146690,1.2745,2143.3,2143.1,0.93335]
[1741414146888,1.2745,2143.3,2143.1,1.55985]
[1741414147286,0.93328,2143.4,2143.2,0.93332]
[1741414147686,2.87134,2143.5,2143.1,1.2757]
[1741414147988,0.93329,2143.4,2143.1,1.3057]
[1741414148195,3.2078,2143.3,2142.9,4.14125]
[1741414148398,0.93339,2143.1,2142.9,4.14125]
[1741414148696,2.83628,2143.2,2143.0,0.93343]
[1741414148899,1.9029,2143.2,2143.1,0.93339]
[1741414149998,1.2783,2143.2,2143.1,0.93339]
[1741414151085,3.2078,2143.6,2142.9,4.4913]
[1741414151394,5.39727,2143.6,2143.3,0.93328]
[1741414151595,0.93322,2143.5,2143.3,0.93328]
[1741414152295,0.93322,2143.5,2142.9,4.4913]
[1741414152492,0.93328,2143.4,2143.2,0.93333]
[1741414152894,4.8452619,2143.6,2142.9,4.4913]
[1741414153096,4.8452619,2143.6,2143.1,0.93337]
[1741414153294,0.93332,2143.3,2143.1,1.00337]
[1741414153501,1.2921,2143.2,2142.9,4.4913]
[1741414153692,1.2921,2143.2,2143.1,0.93339]
[1741414156894,3.5889619,2143.6,2142.9,4.4913]
[1741414156895,3.2078,2143.6,2142.9,4.4913]
[1741414157195,0.93324,2143.5,2143.3,0.93329]
[1741414158501,0.93324,2143.5,2143.4,0.6257]
[1741414159801,0.93332,2143.3,2143.1,0.93336]
[1741414160001,0.93332,2143.3,2143.1,0.94336]
[1741414160504,1.2419,2143.3,2143.2,0.93335]
[1741414161898,0.93324,2143.5,2143.2,0.93335]
[1741414162104,2.20574,2143.5,2143.3,1.5789]
[1741414163107,1.2725,2143.5,2143.3,0.6456]
[1741414163302,1.2725,2143.5,2143.3,1.57887]
[1741414163505,2.20572,2143.5,2143.3,1.57887]
[1741414164005,2.20576,2143.5,2143.3,1.5789]
[1741414165007,0.93326,2143.4,2143.3,0.6456]
[1741414165498,0.93326,2143.4,2143.3,1.5789]
[1741414165698,2.20575,2143.5,2143.3,1.5789]
[1741414166101,0.93326,2143.4,2143.3,0.6456]
[1741414166307,0.93332,2143.3,2142.9,4.4913]
[1741414166600,0.93336,2143.2,2143.0,1.5963]
[1741414166805,0.93336,2143.2,2143.1,0.93339]
[1741414166999,0.93336,2143.2,2143.1,0.95339]
[1741414167604,0.93333,2143.3,2143.1,0.95339]
[1741414173410,0.93331,2143.3,2143.1,0.02]
[1741414173612,0.93331,2143.3,2143.1,0.95337]
[1741414176411,1.2725,2143.5,2143.4,0.93326]
[1741414177213,0.6416,2143.5,2143.4,0.93326]
[1741414178315,3.30506782,2143.9,2143.4,0.93326]
[1741414178316,21.58429748,2144.6,2143.7,2.33276]
[1741414178503,21.58429748,2144.6,2144.3,3.2078]
[1741414178701,21.58429748,2144.6,2144.3,3.2378]
[1741414178910,21.58429748,2144.6,2144.4,0.93282]
[1741414179211,21.58429748,2144.6,2144.5,0.93278]
[1741414179410,21.58429748,2144.6,2144.5,1.2874]
[1741414179617,21.58429748,2144.6,2144.5,2.22018]
[1741414180208,21.58429748,2144.6,2144.5,1.2874]
[1741414180417,21.58429748,2144.6,2144.5,2.22018]
[1741414180714,21.58429748,2144.6,2144.5,1.2874]
[1741414181114,21.58429748,2144.6,2144.5,2.22018]
[1741414181704,1.56944,2144.9,2144.5,2.22015]
[1741414182109,0.6368,2144.9,2144.5,1.2874]
[1741414182409,0.6368,2144.9,2144.6,0.93271]
[1741414182809,0.6368,2144.9,2144.5,1.2874]
[1741414183011,0.93271,2144.7,2144.4,0.9328]
[1741414183214,0.93271,2144.7,2144.4,1.0028]
[1741414183514,0.93271,2144.7,2144.4,0.07]
[1741414183815,0.93271,2144.7,2144.4,1.00282]
[1741414184010,1.2441,2144.8,2144.4,1.00282]
[1741414184211,0.9327,2144.7,2144.4,1.00282]
[1741414184619,2.17678,2144.8,2144.4,1.0028]
[1741414184818,0.9327,2144.7,2144.4,1.0028]
[1741414185021,2.17679,2144.8,2144.5,0.93277]
[1741414185621,0.93269,2144.7,2144.4,0.9328]
[1741414185821,1.2441,2144.8,2144.3,3.2078]
[1741414186021,2.17677,2144.8,2144.5,0.93278]
[1741414186317,2.17677,2144.8,2144.4,0.93279]
[1741414186523,2.17678,2144.8,2144.4,0.9828]
[1741414186723,0.9327,2144.7,2144.4,0.9828]
[1741414187020,1.2441,2144.8,2144.3,3.2078]
[1741414187325,2.17678,2144.8,2144.4,0.93282]
[1741414187625,1.2441,2144.8,2144.3,3.2078]
[1741414187818,1.2441,2144.8,2144.3,3.2878]
[1741414188419,2.17676,2144.8,2144.5,0.93277]
[1741414191128,2.17676,2144.8,2144.4,0.9328]
[1741414191327,2.17676,2144.8,2144.5,0.93277]
[1741414192131,1.2441,2144.8,2144.3,3.2078]
[1741414192330,1.2441,2144.8,2144.6,0.93272]
[1741414192841,2.17676,2144.8,2144.5,0.93274]
[1741414193033,1.2441,2144.8,2144.5,0.93274]
[1741414193237,2.17675,2144.8,2144.6,0.93272]
[1741414193538,1.2441,2144.8,2144.6,0.93272]
[1741414193731,0.6368,2144.9,2144.6,3.2078]
[1741414194039,2.983,2145.0,2144.7,1.3188]
[1741414194240,2.983,2145.0,2144.9,0.93261]
[1741414194436,2.94653,2145.1,2144.9,0.93261]
[1741414194628,2.014,2145.1,2144.9,0.93261]
[1741414194830,2.6858,2145.2,2144.7,1.3188]
[1741414195035,3.6183,2145.2,2145.0,0.93256]
[1741414195235,2.6858,2145.2,2145.0,0.93256]
[1741414195532,3.61829,2145.2,2145.0,0.93256]
[1741414196135,1.60429,2145.2,2145.0,0.93256]
[1741414196936,0.6718,2145.2,2145.1,0.93252]
[1741414197141,4.997,2145.6,2144.9,3.2078]
[1741414197338,1.53987,2145.5,2145.2,0.93244]
[1741414197541,1.53987,2145.5,2144.9,3.2078]
[1741414197839,1.53987,2145.5,2145.3,0.93243]
[1741414198345,1.53987,2145.5,2144.9,3.2078]
[1741414198644,0.93239,2145.4,2145.2,0.93245]
[1741414198945,1.53988,2145.5,2144.9,5.2218]
[1741414199240,1.53988,2145.5,2144.9,5.3118]
[1741414199641,1.53988,2145.5,2145.2,0.93245]
[1741414199940,1.53988,2145.5,2144.9,5.2218]
[1741414199941,0.93252,2145.1,2144.9,5.2218]
[1741414200138,0.93256,2145.0,2144.9,3.2078]
[1741414200340,3.2078,2145.4,2144.9,3.2078]
[1741414200540,0.93248,2145.2,2145.0,0.93254]
[1741414200739,0.9325,2145.2,2145.0,0.93255]
[1741414201137,0.93256,2145.0,2144.9,3.2078]
[1741414201545,1.2751,2145.1,2144.9,3.2078]
[1741414201741,2.20765,2145.1,2144.9,4.1404]
[1741414202041,0.93256,2145.0,2144.9,3.2078]
[1741414202241,1.58666,2145.0,2144.9,3.2078]
[1741414202935,0.6541,2145.0,2144.9,3.2078]
[1741414203141,1.58667,2145.0,2144.8,0.93262]
[1741414203442,0.93263,2144.9,2144.7,2.25148]
[1741414203637,0.93263,2144.9,2144.7,2.27148]
[1741414203832,1.58669,2145.0,2144.7,2.27148]
[1741414204139,0.93262,2144.9,2144.7,2.27148]
[1741414204344,0.6541,2145.0,2144.7,1.3388]
[1741414204837,0.6541,2145.0,2144.6,3.2078]
[1741414205242,0.93263,2144.9,2144.7,0.93268]
[1741414205945,0.6541,2145.0,2144.6,3.2078]
[1741414206148,0.93267,2144.8,2144.6,4.14052]
[1741414206443,0.6541,2145.0,2144.6,3.2078]
[1741414206631,0.93269,2144.7,2144.6,3.2078]
[1741414206833,0.93282,2144.4,2144.3,3.2078]
[1741414207030,0.6152,2144.6,2144.3,3.2078]
[1741414207235,0.93279,2144.5,2144.3,4.77385]
[1741414207439,4.996,2144.9,2144.3,3.841]
[1741414207640,0.9327,2144.7,2144.5,0.93275]
[1741414207841,2.6282,2144.9,2144.5,0.93275]
[1741414208440,0.9327,2144.7,2144.5,0.93275]
[1741414208744,0.93271,2144.7,2144.5,0.93276]
[1741414208936,2.6282,2144.9,2144.4,0.6713]
[1741414209342,2.6282,2144.9,2144.5,0.93274]
[1741414209546,0.9327,2144.7,2144.4,0.6713]
[1741414209732,0.9327,2144.7,2144.5,0.93277]
[1741414210542,0.93272,2144.7,2144.5,0.93276]
[1741414210840,0.93274,2144.6,2144.4,1.6041]
[1741414211946,2.6282,2144.9,2144.3,3.841]
[1741414212146,0.93282,2144.4,2144.3,3.881]
[1741414212355,1.75798611,2145.0,2144.3,3.881]
[1741414212356,3.8155,2145.1,2144.3,3.881]
[1741414212536,0.93259,2145.0,2144.6,3.2078]
[1741414212741,0.6129,2145.1,2144.7,1.9133]
[1741414213047,0.93265,2144.8,2144.7,0.6448]
[1741414213541,0.6129,2145.1,2144.7,0.6448]
[1741414213738,0.6129,2145.1,2144.7,1.57749]
[1741414213943,0.6129,2145.1,2144.7,0.6448]
[1741414214144,1.54544,2145.1,2144.8,0.93261]
[1741414214751,0.6129,2145.1,2144.7,0.6448]
[1741414215138,0.6129,2145.1,2144.9,0.93259]
[1741414215449,2.6937,2145.3,2144.9,0.93259]
[1741414215645,0.93253,2145.1,2144.7,0.6448]
[1741414215950,0.9325,2145.2,2144.9,0.93259]
[1741414216353,0.93236,2145.5,2145.2,0.93245]
[1741414216546,4.14006,2145.7,2145.4,0.93239]
[1741414216741,0.93232,2145.6,2145.3,5.42132]
[1741414216951,3.2078,2145.7,2145.4,0.6203]
[1741414217451,0.93231,2145.6,2145.4,0.6203]
[1741414217646,3.2078,2145.7,2145.4,0.6203]
[1741414217947,0.93231,2145.6,2145.4,0.6203]
[1741414218538,2.035,2145.9,2145.4,1.55268]
[1741414218745,0.93221,2145.9,2145.5,0.93235]
[1741414218951,0.93225,2145.8,2145.5,0.93235]
[1741414219146,0.93219,2145.9,2145.6,0.93227]
[1741414219852,0.93228,2145.7,2145.4,1.55267]
[1741414220150,5.38673805,2146.0,2145.4,0.6203]
[1741414220546,0.93232,2145.6,2145.4,0.6203]
[1741414220943,0.93235,2145.5,2145.4,0.6203]
[1741414221752,0.93233,2145.6,2145.4,0.6203]
[1741414222260,2.40373805,2146.0,2145.4,0.6203]
[1741414222755,0.93232,2145.6,2145.4,0.6203]
[1741414223151,0.93235,2145.5,2145.4,0.6203]
[1741414223352,0.93233,2145.6,2145.4,0.6203]
[1741414223945,2.40373805,2146.0,2145.4,0.6203]
[1741414224151,0.93234,2145.6,2145.4,0.6203]
[1741414224352,0.93235,2145.5,2145.4,0.6203]
[1741414225050,0.93239,2145.4,2145.3,3.8779]
[1741414226251,0.93239,2145.4,2145.3,3.2078]
[1741414228356,0.93239,2145.4,2145.3,3.8165]
[1741414229159,0.93239,2145.4,2145.3,3.2078]
[1741414229663,3.2078,2145.5,2145.2,0.00699676]
[1741414229853,2.16893,2145.3,2145.2,0.00699676]
[1741414232660,6.2497,2145.6,2145.2,0.00699676]
[1741414232855,0.93243,2145.3,2145.2,0.00699676]
[1741414236163,9.4575,2145.6,2145.2,0.00699676]
[1741414236470,6.2497,2145.6,2145.2,0.00699676]
[1741414237458,0.93243,2145.3,2145.2,0.00699676]
[1741414239159,6.2497,2145.6,2145.2,0.00699676]
[1741414239570,6.2497,2145.6,2145.2,0.63629676]
[1741414240071,0.93243,2145.4,2145.3,0.6442]
[1741414242571,0.93243,2145.3,2145.2,0.00699676]
[1741414243870,2.33154,2144.9,2144.4,3.2078]
[1741414244070,2.33154,2144.9,2144.4,3.2578]
[1741414244071,0.93278,2144.5,2144.4,3.2578]
[1741414245172,0.93278,2144.5,2144.4,3.2078]
[1741414245373,0.00699676,2144.7,2144.4,3.2078]
[1741414245573,0.93276,2144.6,2144.4,3.2078]
[1741414245771,0.93276,2144.6,2144.4,4.14062]
[1741414245971,0.93276,2144.6,2144.4,3.2078]
[1741414246776,0.93278,2144.5,2144.4,3.2078]
[1741414247275,0.00699676,2144.7,2144.4,3.2078]
[1741414247469,0.93969676,2144.7,2144.5,0.93276]
[1741414247667,0.93969676,2144.7,2144.6,0.6231]
[1741414247876,0.93969676,2144.7,2144.6,1.2719]
[1741414248577,0.00699676,2144.7,2144.6,2.20464]
[1741414252573,9.1148,2145.7,2144.6,5.3219]
[1741414252775,0.66,2145.5,2145.2,3.2078]
[1741414252976,0.9324,2145.4,2145.3,1.2695]
[1741414253175,0.9324,2145.4,2145.3,0.6178]
[1741414253479,0.93243,2145.3,2145.2,3.2078]
[1741414256173,0.93252,2145.1,2145.0,0.6517]
[1741414256377,0.93252,2145.1,2145.0,1.2989]
[1741414263186,3.63564,2145.4,2144.8,3.2078]
[1741414263381,1.3046,2145.4,2144.8,3.3078]
[1741414263579,0.93258,2145.0,2144.8,4.24043]
[1741414264077,1.3046,2145.4,2144.8,4.24043]
[1741414264390,0.93261,2144.9,2144.8,3.3078]
[1741414264684,0.93261,2144.9,2144.8,3.2078]
[1741414265590,0.93274,2144.6,2144.5,3.2078]
[1741414267582,0.93287,2144.3,2144.2,0.00699676]
[1741414268491,2.95285,2144.4,2144.2,0.00699676]
[1741414268682,2.983,2144.5,2144.2,0.00699676]
[1741414268683,0.93287,2144.3,2144.2,0.00699676]
[1741414268883,0.93284,2144.4,2144.2,0.00699676]
[1741414269079,2.983,2144.5,2144.3,3.2078]
[1741414269284,2.983,2144.5,2144.3,4.14065]
[1741414269887,2.983,2144.5,2144.3,3.2078]
[1741414270088,2.983,2144.5,2144.4,0.93282]
[1741414270291,2.983,2144.5,2144.4,1.00282]
[1741414270585,0.93263,2144.9,2144.4,2.096]
[1741414270889,0.93263,2144.9,2144.7,0.93269]
[1741414271095,0.93263,2144.9,2144.6,4.14051]
[1741414271281,1.2789,2145.1,2144.6,4.14051]
[1741414271282,0.93265,2144.8,2144.7,0.6117]
[1741414271587,0.93261,2144.9,2144.7,1.54438]
[1741414271781,1.2789,2145.1,2144.7,1.54437]
[1741414272090,0.93248,2145.2,2144.7,0.6617]
[1741414272293,0.93248,2145.2,2144.9,0.93259]
[1741414272491,0.93248,2145.2,2145.0,0.6653]
[1741414272690,4.4779,2145.4,2145.0,1.2746]
[1741414272988,0.93252,2145.1,2145.0,0.6093]
[1741414273189,4.4779,2145.4,2144.7,0.6117]
[1741414273382,0.93265,2144.9,2144.7,0.6117]
[1741414273980,0.93265,2144.8,2144.7,0.6117]
[1741414274182,2.33109,2145.3,2144.6,3.2078]
[1741414274183,0.93269,2144.7,2144.6,3.2078]
[1741414274387,0.93269,2144.7,2144.6,3.3078]
[1741414275591,0.6704,2144.9,2144.6,3.3078]
[1741414275987,0.93265,2144.8,2144.6,3.3078]
[1741414276193,1.60303,2144.9,2144.6,4.24052]
[1741414276388,0.6704,2144.9,2144.6,3.3078]
[1741414276686,2.96155,2145.1,2144.8,0.93264]
[1741414276889,0.93255,2145.1,2144.9,0.6092]
[1741414277284,0.93256,2145.0,2144.9,0.6092]
[1741414277583,9.798,2145.2,2144.6,3.2078]
[1741414277787,0.93269,2144.7,2144.6,3.2078]
[1741414279688,0.93267,2144.8,2144.6,4.14054]
[1741414279886,2.032,2145.0,2144.6,3.2078]
[1741414280193,0.93264,2144.9,2144.6,4.14052]
[1741414280493,2.032,2145.0,2144.6,4.14052]
[1741414280494,0.93266,2144.8,2144.6,4.14052]
[1741414280686,0.93264,2144.9,2144.6,3.2078]
[1741414280887,2.032,2145.0,2144.6,3.2078]
[1741414281088,0.93259,2145.0,2144.7,0.93267]
[1741414281288,2.983,2145.1,2144.8,0.671]
[1741414281489,0.93261,2144.9,2144.8,1.3089]
[1741414281688,0.9326,2145.0,2144.8,1.3089]
[1741414281994,2.983,2145.1,2144.8,2.24153]
[1741414282191,2.983,2145.1,2144.9,0.6303]
[1741414282595,2.983,2145.1,2144.9,1.56288]
[1741414282796,3.91555,2145.1,2144.9,3.8381]
[1741414282988,0.93254,2145.1,2144.9,4.77069]
[1741414283385,0.93254,2145.1,2144.9,3.8381]
[1741414283595,2.96351,2145.2,2144.9,4.77068]
[1741414283795,0.93253,2145.1,2144.9,3.8381]
[1741414283991,0.93256,2145.0,2144.9,3.8381]
[1741414284197,2.6487,2145.2,2144.9,3.8381]
[1741414284394,0.93255,2145.1,2144.9,3.8381]
[1741414284698,2.6487,2145.2,2144.9,4.77071]
[1741414284890,6.1318,2145.5,2144.9,3.8481]
[1741414285094,0.93248,2145.2,2145.0,0.93254]
[1741414285402,0.93251,2145.2,2145.0,0.04]
[1741414285590,6.1318,2145.5,2145.0,0.04]
[1741414285792,6.50518839,2145.5,2145.0,0.04]
[1741414285994,0.93252,2145.1,2145.0,0.04]
[1741414286695,0.93251,2145.2,2145.0,0.04]
[1741414286895,0.93251,2145.2,2145.0,0.97256]
[1741414287091,0.93251,2145.2,2145.0,0.04]
[1741414288098,2.924,2145.5,2145.0,0.04]
[1741414288293,0.93239,2145.4,2145.2,0.93245]
[1741414288500,0.93239,2145.4,2145.3,0.6343]
[1741414288794,3.2078,2145.9,2145.3,0.6443]
[1741414289097,3.2078,2145.9,2145.5,3.2078]
[1741414289294,0.9323,2145.6,2145.5,3.2078]
[1741414290295,3.2078,2145.9,2145.5,3.2078]
[1741414290500,0.93224,2145.8,2145.5,4.16012]
[1741414290797,0.93226,2145.7,2145.5,4.16012]
[1741414290996,0.9323,2145.6,2145.5,3.2278]
[1741414291197,3.98185962,2146.1,2145.5,3.2078]
[1741414291500,0.9323,2145.6,2145.5,3.2078]
[1741414294400,3.2078,2145.7,2145.4,0.00699676]
[1741414294595,1.54665,2145.5,2145.4,0.00699676]
[1741414300300,2.24252,2145.6,2145.4,0.00699676]
[1741414300505,0.93235,2145.5,2145.4,0.62449676]
[1741414301608,0.93235,2145.5,2145.4,0.00699676]
[1741414303509,0.6606,2145.6,2145.4,0.00699676]
[1741414303803,0.93226,2145.7,2145.4,0.00699676]
[1741414304007,0.93232,2145.6,2145.4,0.93937676]
[1741414304207,0.93232,2145.6,2145.5,1.2995]
[1741414304910,1.8881,2145.8,2145.5,1.2995]
[1741414305110,0.93226,2145.7,2145.5,2.23182]
[1741414305408,2.17765,2145.8,2145.6,0.9323]
[1741414305714,0.93226,2145.7,2145.5,1.2995]
[1741414305903,0.93226,2145.7,2145.5,2.23181]
[1741414306304,0.93226,2145.7,2145.5,1.2995]
[1741414306500,3.6092,2145.9,2145.5,2.23182]
[1741414306704,0.9323,2145.6,2145.5,1.2995]
[1741414306909,0.93229,2145.7,2145.5,2.23185]
[1741414307606,0.6262,2145.9,2145.5,1.2995]
[1741414307810,0.93225,2145.8,2145.6,0.93229]
[1741414308913,0.93225,2145.8,2145.7,0.93226]
[1741414309610,0.93225,2145.8,2145.6,0.93227]
[1741414309812,0.93225,2145.8,2145.7,0.6434]
[1741414310007,0.93225,2145.8,2145.7,1.57566]
[1741414310510,0.93225,2145.8,2145.7,0.6434]
[1741414311205,2.03,2146.0,2145.7,0.6434]
[1741414311206,0.93214,2146.0,2145.7,0.6434]
[1741414311411,0.93214,2146.0,2145.8,0.93219]
[1741414311814,0.93214,2146.0,2145.9,0.6659]
[1741414314508,1.91853548,2146.1,2145.9,1.59805]
[1741414314711,0.93213,2146.0,2145.9,1.2881]
[1741414315215,0.98643548,2146.1,2145.8,3.2078]
[1741414315418,0.93217,2145.9,2145.8,3.2078]
[1741414315717,0.93226,2145.8,2145.5,2.16251]
[1741414316017,0.93226,2145.8,2145.5,2.99581]
[1741414316316,0.93225,2145.8,2145.5,2.99581]
[1741414316528,0.93227,2145.7,2145.5,2.99581]
[1741414317011,2.45137611,2146.1,2145.5,2.99581]
[1741414317012,0.93225,2145.8,2145.5,2.99581]
[1741414317219,0.93225,2145.8,2145.6,0.93229]
[1741414318117,0.93225,2145.8,2145.7,3.2078]
[1741414320018,2.33044,2145.9,2145.4,3.21479676]
[1741414320218,0.93235,2145.5,2145.4,3.21479676]
[1741414320616,0.93235,2145.5,2145.4,0.00699676]
[1741414324626,0.93232,2145.6,2145.4,0.93935676]
[1741414324822,0.93232,2145.6,2145.5,0.6371]
[1741414326714,0.93235,2145.5,2145.4,0.00699676]
[1741414326920,0.93232,2145.6,2145.4,4.78316676]
[1741414327524,0.623,2145.7,2145.4,3.85079676]
[1741414327926,2.983,2145.9,2145.4,3.87079676]
[1741414328121,0.93222,2145.8,2145.6,0.93227]
[1741414328318,0.93222,2145.8,2145.7,0.6243]
[1741414328622,0.93222,2145.8,2145.7,0.6114]
[1741414328825,2.983,2145.9,2145.7,0.6114]
[1741414329022,3.9152,2145.9,2145.8,3.2078]
[1741414329624,0.93235,2145.5,2145.4,3.21479676]
[1741414329830,0.93233,2145.6,2145.4,3.30479676]
[1741414330026,0.6352,2145.8,2145.4,3.30479676]
[1741414330324,3.9152,2145.9,2145.6,0.9323]
[1741414330522,0.93222,2145.8,2145.7,0.6114]
[1741414331320,0.93219,2145.9,2145.7,1.54366]
[1741414331531,0.93221,2145.9,2145.7,1.54365]
[1741414332535,0.93222,2145.8,2145.7,0.6114]
[1741414334427,0.93228,2145.7,2145.5,5.40532]
[1741414334627,0.93228,2145.7,2145.5,6.05292]
[1741414334923,0.93228,2145.7,2145.5,6.17292]
[1741414335129,1.2795,2146.0,2145.5,6.17292]
[1741414335330,0.9323,2145.6,2145.5,3.9754]
[1741414335535,0.93228,2145.7,2145.5,4.90773]
[1741414335834,0.93224,2145.8,2145.6,0.9323]
[1741414336032,0.93224,2145.8,2145.6,1.5525]
[1741414336227,0.93224,2145.8,2145.6,0.6202]
[1741414336533,1.2795,2146.0,2145.6,0.6202]
[1741414336843,0.93226,2145.7,2145.6,0.6202]
[1741414337136,0.9323,2145.6,2145.5,3.8554]
[1741414337330,0.9323,2145.6,2145.5,3.8854]
[1741414337834,0.9323,2145.6,2145.5,3.8554]
[1741414339333,1.5465,2145.6,2145.5,3.8554]
[1741414340833,0.93225,2145.8,2145.6,0.9323]
[1741414341036,0.6496,2145.9,2145.7,0.6176]
[1741414341335,0.93219,2145.9,2145.7,1.54983]
[1741414341536,0.93219,2145.9,2145.7,0.6176]
[1741414341537,0.93222,2145.8,2145.7,0.6176]
[1741414342632,0.6496,2145.9,2145.7,0.6176]
[1741414342833,1.2751,2146.1,2145.8,3.2078]
[1741414343136,3.6326,2146.2,2145.9,0.6711]
[1741414343323,0.93209,2146.1,2146.0,0.6454]
[1741414343827,0.93209,2146.1,2145.9,0.6711]
[1741414343828,0.6496,2146.2,2145.8,3.2078]
[1741414344027,0.93217,2145.9,2145.8,3.2078]
[1741414344424,0.93217,2145.9,2145.7,1.2508]
[1741414344630,0.93217,2145.9,2145.7,1.3008]
[1741414344834,0.93217,2145.9,2145.7,2.23306]
[1741414345630,0.9322,2145.9,2145.8,3.2078]
[1741414345829,0.6496,2146.2,2145.8,3.2078]
[1741414346030,0.93215,2146.0,2145.8,3.2078]
[1741414346329,1.294,2146.2,2145.8,3.2078]
[1741414346330,0.93209,2146.1,2145.8,3.2078]
[1741414346523,0.93209,2146.1,2145.8,4.14]
[1741414347730,1.294,2146.2,2145.8,3.2078]
[1741414347939,2.22609,2146.2,2145.9,0.93217]
[1741414348128,1.294,2146.2,2145.8,3.2078]
[1741414348328,1.294,2146.2,2146.0,0.93211]
[1741414348832,2.22604,2146.2,2146.1,0.6169]
[1741414349335,1.294,2146.2,2146.1,0.6169]
[1741414349530,2.22604,2146.2,2146.1,0.6169]
[1741414351238,1.294,2146.2,2146.1,1.54899]
[1741414351435,2.046,2146.5,2146.1,3.8347]
[1741414351633,1.9214,2146.5,2146.2,0.6049]
[1741414351834,0.93199,2146.4,2146.2,1.53694]
[1741414352136,0.932,2146.3,2146.2,0.6049]
[1741414352334,2.2964886,2146.5,2146.1,3.8247]
[1741414352638,0.93204,2146.3,2146.1,0.6169]
[1741414353236,1.57614,2146.2,2146.1,0.6169]
[1741414353840,1.57614,2146.2,2146.0,1.58761]
[1741414354131,0.93217,2145.9,2145.8,3.2078]
[1741414354334,0.93217,2145.9,2145.8,3.3178]
[1741414354532,0.93217,2145.9,2145.5,5.179]
[1741414354736,0.93217,2145.9,2145.7,0.93225]
[1741414354942,0.93217,2145.9,2145.7,1.02225]
[1741414356139,0.93215,2146.0,2145.7,1.02225]
[1741414356339,0.93215,2146.0,2145.8,0.6134]
[1741414356537,0.93217,2145.9,2145.8,0.6134]
[1741414357438,0.93217,2145.9,2145.5,4.5227]
[1741414357640,3.62503,2146.1,2145.5,3.4778]
[1741414357841,3.62503,2146.1,2145.5,4.41013]
[1741414357842,0.62,2145.8,2145.5,4.41013]
[1741414358038,1.58377,2145.7,2145.5,4.7242]
[1741414358842,2.21487,2145.7,2145.5,4.7242]
[1741414359345,0.9323,2145.6,2145.5,4.7242]
[1741414360446,1.2826,2145.7,2145.5,4.7242]
[1741414360642,0.9323,2145.6,2145.5,3.4778]
[1741414360941,1.2826,2145.7,2145.4,0.00699676]
[1741414360942,0.93235,2145.5,2145.4,0.00699676]
[1741414361245,1.58085,2145.5,2145.4,0.00699676]
[1741414361845,0.6485,2145.5,2144.9,4.4513]
[1741414362040,0.93255,2145.1,2144.9,4.8013]
[1741414363547,1.56635,2145.1,2144.9,4.8013]
[1741414364444,0.93256,2145.0,2144.9,0.9675]
[1741414364646,1.55036,2145.0,2144.9,0.9675]
[1741414364851,0.93261,2144.9,2144.8,0.00699676]
[1741414365043,0.93261,2144.9,2144.8,0.12699676]
[1741414365647,0.93261,2144.9,2144.8,0.00699676]
[1741414367952,0.6178,2145.0,2144.8,0.00699676]
[1741414368150,0.93257,2145.0,2144.8,0.00699676]
[1741414368346,0.93257,2145.0,2144.8,0.67389676]
[1741414368549,0.93257,2145.0,2144.9,3.2078]
[1741414368752,0.93257,2145.0,2144.9,3.8223]
[1741414368949,0.6338,2145.1,2144.9,3.8223]
[1741414369351,1.56635,2145.1,2144.9,3.8223]
[1741414370448,0.6338,2145.1,2144.9,3.8223]
[1741414370649,2.04699676,2145.2,2145.0,0.93256]
[1741414370856,0.00699676,2145.2,2145.1,0.6633]
[1741414371351,0.93947676,2145.2,2145.1,0.6633]
[1741414371856,0.93253,2145.1,2144.9,3.8223]
[1741414372057,0.93253,2145.1,2144.9,4.6756]
[1741414372259,0.00699676,2145.2,2144.9,5.60819]
[1741414372550,0.00699676,2145.2,2144.9,4.6756]
[1741414372858,0.00699676,2145.2,2145.0,0.93253]
[1741414373049,0.00699676,2145.2,2145.0,1.01253]
[1741414374251,0.93947676,2145.2,2145.0,1.01253]
[1741414374446,0.93947676,2145.2,2145.0,1.01256]
[1741414374652,0.00699676,2145.2,2145.0,1.01256]